fUST/lending_fUST_20250907
["ID","MTS","AMOUNT","RATE_DAILY","PERIOD"]
[383943843,1757188257345,-583.5999924,0.00017808,2]
[383943844,1757188257354,-295.3355136,0.00017808,2]
[383943845,1757188257363,-581.8701468,0.00017808,2]
[383943846,1757188257373,-322.8669166,0.00017808,2]
[383943847,1757188257382,-295.3355136,0.00017808,2]
[383943848,1757188257391,-3000.0,0.00017876,2]
[383943849,1757188257400,-3000.0,0.00017967,2]
[383943850,1757188257410,-3000.0,0.00017982,2]
[383943851,1757188257419,-3000.0,0.00017982,2]
[383943852,1757188257429,-560.0,0.00017992,2]
[383943853,1757188257444,-1500.0,0.00018068,2]
[383943854,1757188257453,-502.52714302,0.00018068,2]
[383943855,1757188257463,-751.25,0.00018082,2]
[383943856,1757188257472,-480.0,0.00018082,2]
[383943857,1757188257481,-505.83,0.00018082,2]
[383943858,1757188257490,-556.38,0.00018082,2]
[383943859,1757188257499,-566.54,0.00018082,2]
[383943860,1757188257508,-481.35,0.00018082,2]
[383943861,1757188257517,-480.0,0.00018082,2]
[383943862,1757188257527,-529.67,0.00018082,2]
[383943863,1757188257536,-509.94,0.00018082,2]
[383943864,1757188257546,-480.0,0.00018082,2]
[383943865,1757188257554,-269.25257597,0.00018082,2]
[383943866,1757188257563,-705.55,0.00018082,2]
[383943867,1757188257572,-480.0,0.00018082,2]
[383943868,1757188257581,-3041.38,0.00018082,2]
[383943869,1757188257590,-480.0,0.00018082,2]
[383943870,1757188257599,-7226.88,0.00018082,2]
[383943871,1757188257612,-553.89,0.00018082,2]
[383943872,1757188257621,-480.0,0.00018082,2]
[383943873,1757188257630,-594.3,0.00018082,2]
[383943874,1757188257640,-556.91,0.00018082,2]
[383943875,1757188257649,-480.0,0.00018082,2]
[383943876,1757188257658,-602.49,0.00018082,2]
[383943877,1757188257667,-480.0,0.00018082,2]
[383943878,1757188257676,-740.07,0.00018082,2]
[383943879,1757188257685,-1229.74,0.00018082,2]
[383943880,1757188257694,-1289.77,0.00018082,2]
[383943881,1757188257702,-2872.85,0.00018082,2]
[383943882,1757188257712,-597.95,0.00018082,2]
[383943883,1757188257721,-1596.78,0.00018082,2]
[383943884,1757188257729,-5759.89,0.00018082,2]
[383943885,1757188257738,-2769.71,0.00018082,2]
[383943886,1757188257747,-2038.35,0.00018082,2]
[383943887,1757188257756,-480.0,0.00018082,2]
[383943888,1757188257765,-1191.28,0.00018082,2]
[383943889,1757188257774,-1777.18,0.00018082,2]
[383943890,1757188257783,-568.44,0.00018082,2]
[383943891,1757188257792,-806.04,0.00018082,2]
[383943892,1757188257801,-975.38,0.00018082,2]
[383943893,1757188257810,-480.0,0.00018082,2]
[383943894,1757188257818,-480.0,0.00018082,2]
[383943895,1757188257827,-480.0,0.00018082,2]
[383943896,1757188257836,-1149.06,0.00018082,2]
[383943897,1757188257845,-480.0,0.00018082,2]
[383943898,1757188257854,-539.15,0.00018082,2]
[383943899,1757188257863,-480.0,0.00018082,2]
[383943900,1757188257871,-480.0,0.00018082,2]
[383943901,1757188257880,-595.52,0.00018082,2]
[383943902,1757188257889,-1423.76,0.00018082,2]
[383943903,1757188257898,-1509.09,0.00018082,2]
[383943904,1757188257907,-1413.15,0.00018082,2]
[383943905,1757188257916,-480.0,0.00018082,2]
[383943906,1757188257925,-1542.88,0.00018082,2]
[383943907,1757188257934,-480.0,0.00018082,2]
[383943908,1757188257942,-1635.19,0.00018082,2]
[383943909,1757188257951,-480.0,0.00018082,2]
[383943910,1757188257961,-514.21,0.00018082,2]
[383943911,1757188257969,-1024.43,0.00018082,2]
[383943912,1757188257978,-776.49,0.00018082,2]
[383943913,1757188257987,-1500.0,0.00018082,7]
[383943914,1757188257995,-1500.0,0.00018082,7]
[383943915,1757188258004,-1500.0,0.00018082,7]
[383943916,1757188258013,-1500.0,0.00018082,7]
[383943917,1757188258026,-1500.0,0.00018082,7]
[383943918,1757188258039,-1500.0,0.00018082,7]
[383943919,1757188258052,-1500.0,0.00018082,7]
[383943920,1757188258064,-1500.0,0.00018082,7]
[383943921,1757188258075,-1500.0,0.00018082,7]
[383943922,1757188258085,-1500.0,0.00018082,7]
[383943923,1757188258097,-172.802727,0.00018082,7]
[383943924,1757188258108,-417.15472785,0.0001809,7]
[383943925,1757188258120,-160.0,0.0001809,7]
[383943926,1757188258131,-530.56961759,0.0001809,7]
[383943927,1757188258143,-10572.35515662,0.000181,7]
[383943928,1757188258154,-160.0,0.000181,7]
[383943929,1757188258166,-651.24756313,0.00018108,2]
[383943930,1757188258179,-751.25,0.00018356,2]
[383943931,1757188258192,-480.0,0.00018356,2]
[383943932,1757188258204,-505.83,0.00018356,2]
[383943933,1757188258215,-556.38,0.00018356,2]
[383943934,1757188258228,-566.54,0.00018356,2]
[383943935,1757188258238,-481.35,0.00018356,2]
[383943936,1757188258249,-480.0,0.00018356,2]
[383943937,1757188258261,-529.67,0.00018356,2]
[383943938,1757188258273,-509.94,0.00018356,2]
[383943939,1757188258284,-480.0,0.00018356,2]
[383943940,1757188258296,-705.55,0.00018356,2]
[383943941,1757188258306,-480.0,0.00018356,2]
[383943942,1757188258316,-3041.38,0.00018356,2]
[383943943,1757188258327,-480.0,0.00018356,2]
[383943944,1757188258338,-7226.88,0.00018356,2]
[383943945,1757188258348,-553.89,0.00018356,2]
[383943946,1757188258359,-480.0,0.00018356,2]
[383943947,1757188258371,-594.3,0.00018356,2]
[383943948,1757188258383,-556.91,0.00018356,2]
[383943949,1757188258393,-480.0,0.00018356,2]
[383943950,1757188258405,-602.49,0.00018356,2]
[383943951,1757188258417,-389.99096324,0.00018356,2]
[383943952,1757188258429,-740.07,0.00018356,2]
[383943953,1757188258441,-1229.74,0.00018356,2]
[383943954,1757188258452,-1289.77,0.00018356,2]
[383943955,1757188258462,-2872.85,0.00018356,2]
[383943956,1757188258471,-597.95,0.00018356,2]
[383943957,1757188258481,-1596.78,0.00018356,2]
[383943958,1757188258492,-5759.89,0.00018356,2]
[383943959,1757188258504,-2769.71,0.00018356,2]
[383943960,1757188258517,-2038.35,0.00018356,2]
[383943961,1757188258529,-480.0,0.00018356,2]
[383943962,1757188258539,-1191.28,0.00018356,2]
[383943963,1757188258549,-1777.18,0.00018356,2]
[383943964,1757188258560,-568.44,0.00018356,2]
[383943965,1757188258571,-806.04,0.00018356,2]
[383943966,1757188258583,-975.38,0.00018356,2]
[383943967,1757188258594,-480.0,0.00018356,2]
[383943968,1757188258605,-480.0,0.00018356,2]
[383943969,1757188258616,-480.0,0.00018356,2]
[383943970,1757188258626,-1149.06,0.00018356,2]
[383943971,1757188258636,-480.0,0.00018356,2]
[383943972,1757188258647,-539.15,0.00018356,2]
[383943973,1757188258657,-480.0,0.00018356,2]
[383943974,1757188258667,-480.0,0.00018356,2]
[383943975,1757188258677,-595.52,0.00018356,2]
[383943976,1757188258689,-1423.76,0.00018356,2]
[383943977,1757188258701,-1509.09,0.00018356,2]
[383943978,1757188258713,-1413.15,0.00018356,2]
[383943979,1757188258724,-480.0,0.00018356,2]
[383943980,1757188258735,-1542.88,0.00018356,2]
[383943981,1757188258747,-480.0,0.00018356,2]
[383943982,1757188258760,-1635.19,0.00018356,2]
[383943983,1757188258771,-480.0,0.00018356,2]
[383943984,1757188258782,-514.21,0.00018356,2]
[383943985,1757188258793,-1024.43,0.00018356,2]
[383943986,1757188258803,-776.49,0.00018356,2]
[383943987,1757188258814,-3500.0,0.00018515,2]
[383943988,1757188258825,-3500.0,0.0001853,2]
[383943989,1757188258836,-1594.6497918,0.0001853,2]
[383943990,1757188258848,-660.0,0.0001854,2]
[383943991,1757188258859,-295.3355136,0.00018548,2]
[383943992,1757188258870,-266.7592512,0.00018548,2]
[383943993,1757188258880,-1000.0,0.00018595,20]
[383943994,1757188258892,-1000.0,0.000186,2]
[383943995,1757188258903,-1000.0,0.000186,2]
[383943996,1757188258914,-1000.0,0.000186,2]
[383943997,1757188258925,-1000.0,0.000186,2]
[383943998,1757188258935,-1000.0,0.000186,2]
[383943999,1757188258947,-1000.0,0.000186,2]
[383944000,1757188258958,-1000.0,0.000186,2]
[383944001,1757188258969,-1000.0,0.000186,2]
[383944002,1757188258979,-1000.0,0.000186,2]
[383944003,1757188258989,-853.23714534,0.00018616,2]
[383944004,1757188259000,-751.25,0.0001863,2]
[383944005,1757188259012,-405.17933813,0.0001863,2]
[383944006,1757188259024,-505.83,0.0001863,2]
[383944007,1757188259036,-556.38,0.0001863,2]
[383944008,1757188259048,-566.54,0.0001863,2]
[383944009,1757188259059,-481.35,0.0001863,2]
[383944010,1757188259070,-480.0,0.0001863,2]
[383944011,1757188259081,-529.67,0.0001863,2]
[383944012,1757188259092,-509.94,0.0001863,2]
[383944013,1757188259104,-480.0,0.0001863,2]
[383944014,1757188259115,-705.55,0.0001863,2]
[383944015,1757188259126,-480.0,0.0001863,2]
[383944016,1757188259139,-3041.38,0.0001863,2]
[383944017,1757188259150,-480.0,0.0001863,2]
[383944018,1757188259161,-7226.88,0.0001863,2]
[383944019,1757188259172,-553.89,0.0001863,2]
[383944020,1757188259184,-480.0,0.0001863,2]
[383944021,1757188259195,-594.3,0.0001863,2]
[383944022,1757188259206,-556.91,0.0001863,2]
[383944023,1757188259217,-480.0,0.0001863,2]
[383944024,1757188259228,-602.49,0.0001863,2]
[383944025,1757188259240,-740.07,0.0001863,2]
[383944026,1757188259251,-1229.74,0.0001863,2]
[383944027,1757188259263,-1289.77,0.0001863,2]
[383944028,1757188259274,-2872.85,0.0001863,2]
[383944029,1757188259286,-597.95,0.0001863,2]
[383944030,1757188259298,-1596.78,0.0001863,2]
[383944031,1757188259310,-5759.89,0.0001863,2]
[383944032,1757188259321,-2769.71,0.0001863,2]
[383944033,1757188259332,-2038.35,0.0001863,2]
[383944034,1757188259343,-480.0,0.0001863,2]
[383944035,1757188259355,-1191.28,0.0001863,2]
[383944036,1757188259366,-1777.18,0.0001863,2]
[383944037,1757188259377,-568.44,0.0001863,2]
[383944038,1757188259388,-806.04,0.0001863,2]
[383944039,1757188259399,-975.38,0.0001863,2]
[383944040,1757188259410,-480.0,0.0001863,2]
[383944041,1757188259421,-480.0,0.0001863,2]
[383944042,1757188259432,-480.0,0.0001863,2]
[383944043,1757188259443,-1149.06,0.0001863,2]
[383944044,1757188259455,-480.0,0.0001863,2]
[383944045,1757188259466,-539.15,0.0001863,2]
[383944046,1757188259478,-480.0,0.0001863,2]
[383944047,1757188259489,-480.0,0.0001863,2]
[383944048,1757188259500,-595.52,0.0001863,2]
[383944049,1757188259512,-1423.76,0.0001863,2]
[383944050,1757188259523,-1509.09,0.0001863,2]
[383944051,1757188259535,-1413.15,0.0001863,2]
[383944052,1757188259546,-480.0,0.0001863,2]
[383944053,1757188259557,-1542.88,0.0001863,2]
[383944054,1757188259569,-480.0,0.0001863,2]
[383944055,1757188259580,-1635.19,0.0001863,2]
[383944056,1757188259592,-480.0,0.0001863,2]
[383944057,1757188259604,-514.21,0.0001863,2]
[383944058,1757188259619,-1024.43,0.0001863,2]
[383944059,1757188259630,-776.49,0.0001863,2]
[383944060,1757188259643,-1500.0,0.0001863,2]
[383944061,1757188259654,-295.3355136,0.0001863,2]
[383944062,1757188259665,-295.3355136,0.0001863,2]
[383944063,1757188259676,-184.50452316,0.00018674,2]
[383944064,1757188259686,-1067.4,0.000187,2]
[383944065,1757188259695,-160.0,0.00018742,3]
[383944066,1757188259705,-500.0,0.00018847,2]
[383944067,1757188259715,-500.0,0.00018847,2]
[383944068,1757188259724,-500.0,0.00018847,2]
[383944069,1757188259734,-500.0,0.00018847,2]
[383944070,1757188259743,-500.0,0.00018847,2]
[383944071,1757188259938,-500.0,0.00018847,2]
[383944072,1757188259954,-500.0,0.00018847,2]
[383944073,1757188259964,-500.0,0.0001886,2]
[383944074,1757188259974,-500.0,0.00018868,2]
[383944075,1757188259983,-500.0,0.00018868,2]
[383944076,1757188259992,-302.45563732,0.000189,2]
[383944077,1757188260002,-302.45563732,0.000189,2]
[383944078,1757188260011,-751.25,0.00018904,2]
[383944079,1757188260021,-505.83,0.00018904,2]
[383944080,1757188260030,-556.38,0.00018904,2]
[383944081,1757188260040,-566.54,0.00018904,2]
[383944082,1757188260050,-481.35,0.00018904,2]
[383944083,1757188260060,-615.97242833,0.00018904,2]
[383944084,1757188260069,-529.67,0.00018904,2]
[383944085,1757188260079,-509.94,0.00018904,2]
[383944086,1757188260088,-480.0,0.00018904,2]
[383944087,1757188260098,-705.55,0.00018904,2]
[383944088,1757188260108,-480.0,0.00018904,2]
[383944089,1757188260119,-3041.38,0.00018904,2]
[383944090,1757188260128,-480.0,0.00018904,2]
[383944091,1757188260138,-7226.88,0.00018904,2]
[383944092,1757188260148,-553.89,0.00018904,2]
[383944093,1757188260158,-480.0,0.00018904,2]
[383944094,1757188260168,-594.3,0.00018904,2]
[383944095,1757188260178,-556.91,0.00018904,2]
[383944096,1757188260187,-480.0,0.00018904,2]
[383944097,1757188260197,-602.49,0.00018904,2]
[383944098,1757188260208,-740.07,0.00018904,2]
[383944099,1757188260217,-1229.74,0.00018904,2]
[383944100,1757188260227,-1289.77,0.00018904,2]
[383944101,1757188260237,-2872.85,0.00018904,2]
[383944102,1757188260246,-597.95,0.00018904,2]
[383944103,1757188260255,-1596.78,0.00018904,2]
[383944104,1757188260265,-5759.89,0.00018904,2]
[383944105,1757188260275,-2769.71,0.00018904,2]
[383944106,1757188260284,-2038.35,0.00018904,2]
[383944107,1757188260293,-480.0,0.00018904,2]
[383944108,1757188260303,-1191.28,0.00018904,2]
[383944109,1757188260312,-1777.18,0.00018904,2]
[383944110,1757188260322,-568.44,0.00018904,2]
[383944111,1757188260332,-806.04,0.00018904,2]
[383944112,1757188260341,-975.38,0.00018904,2]
[383944113,1757188260351,-480.0,0.00018904,2]
[383944114,1757188260361,-480.0,0.00018904,2]
[383944115,1757188260370,-480.0,0.00018904,2]
[383944116,1757188260379,-1149.06,0.00018904,2]
[383944117,1757188260389,-427.48424903,0.00018904,2]
[383944118,1757188260398,-539.15,0.00018904,2]
[383944119,1757188260407,-480.0,0.00018904,2]
[383944120,1757188260416,-201.05102715,0.00018904,2]
[383944121,1757188260425,-595.52,0.00018904,2]
[383944122,1757188260435,-1423.76,0.00018904,2]
[383944123,1757188260443,-1509.09,0.00018904,2]
[383944124,1757188260453,-1413.15,0.00018904,2]
[383944125,1757188260463,-480.0,0.00018904,2]
[383944126,1757188260472,-1542.88,0.00018904,2]
[383944127,1757188260482,-290.47256062,0.00018904,2]
[383944128,1757188260491,-1635.19,0.00018904,2]
[383944129,1757188260501,-480.0,0.00018904,2]
[383944130,1757188260510,-514.21,0.00018904,2]
[383944131,1757188260519,-1024.43,0.00018904,2]
[383944132,1757188260529,-776.49,0.00018904,2]
[383944133,1757188260537,-156.43,0.00018904,2]
[383944134,1757188260546,-3000.0,0.00018972,2]
[383944135,1757188260555,-4026.0,0.00019,2]
[383944136,1757188260565,-4000.0,0.00019063,2]
[383944137,1757188260574,-123466.94304663,0.00019063,7]
[383944138,1757188260583,-179.21248011,0.00019068,2]
[383944139,1757188260592,-10572.35515662,0.0001907,7]
[383944140,1757188260601,-160.0,0.0001907,7]
[383944141,1757188260615,-164.61303818,0.00019073,2]
[383944142,1757188260624,-500.0,0.00019073,2]
[383944143,1757188260634,-4000.0,0.00019078,2]
[383944144,1757188260643,-760.0,0.00019088,2]
[383944145,1757188260652,-302.45563732,0.00019089,2]
[383944146,1757188260662,-302.45563732,0.00019089,2]
[383944147,1757188260671,-417.15472785,0.000191,7]
[383944148,1757188260680,-160.0,0.000191,7]
[383944149,1757188260689,-530.56961759,0.000191,7]
[383944150,1757188260699,-751.25,0.00019178,2]
[383944151,1757188260708,-505.83,0.00019178,2]
[383944152,1757188260718,-556.38,0.00019178,2]
[383944153,1757188260727,-566.54,0.00019178,2]
[383944154,1757188260736,-481.35,0.00019178,2]
[383944155,1757188260746,-529.67,0.00019178,2]
[383944156,1757188260756,-509.94,0.00019178,2]
[383944157,1757188260766,-480.0,0.00019178,2]
[383944158,1757188260776,-705.55,0.00019178,2]
[383944159,1757188260785,-412.59502813,0.00019178,2]
[383944160,1757188260794,-3041.38,0.00019178,2]
[383944161,1757188260804,-480.0,0.00019178,2]
[383944162,1757188260814,-7226.88,0.00019178,2]
[383944163,1757188260823,-553.89,0.00019178,2]
[383944164,1757188260833,-480.0,0.00019178,2]
[383944165,1757188260843,-594.3,0.00019178,2]
[383944166,1757188260852,-556.91,0.00019178,2]
[383944167,1757188260862,-480.0,0.00019178,2]
[383944168,1757188260873,-602.49,0.00019178,2]
[383944169,1757188260883,-740.07,0.00019178,2]
[383944170,1757188260893,-1229.74,0.00019178,2]
[383944171,1757188260902,-1289.77,0.00019178,2]
[383944172,1757188260912,-2872.85,0.00019178,2]
[383944173,1757188260923,-597.95,0.00019178,2]
[383944174,1757188260932,-1596.78,0.00019178,2]
[383944175,1757188260942,-5759.89,0.00019178,2]
[383944176,1757188260952,-2769.71,0.00019178,2]
[383944177,1757188260962,-31.93114224,0.00019178,2]
[383944178,1757188261260,-372.9242503,0.00014794,2]
[383944179,1757188261295,-335.8157497,0.00014794,2]
[383944180,1757188261305,-708.74,0.00015068,2]
[383944181,1757188261314,-708.74,0.00015342,2]
[383944182,1757188261324,-708.74,0.00015616,2]
[383944183,1757188261333,-708.74,0.0001589,2]
[383944184,1757188261342,-140.45304302,0.00016,3]
[383944185,1757188261354,-62.76547722,0.00016,3]
[383944186,1757188261364,-708.74,0.00016164,2]
[383944187,1757188261374,-511.14,0.00016438,2]
[383944188,1757188261384,-708.74,0.00016438,2]
[383944189,1757188261393,-511.14,0.00016712,2]
[383944190,1757188261403,-708.74,0.00016712,2]
[383944191,1757188261413,-511.14,0.00016986,2]
[383944192,1757188261422,-708.74,0.00016986,2]
[383944193,1757188261431,-1000.0,0.00017,2]
[383944194,1757188261441,-511.14,0.0001726,2]
[383944195,1757188261450,-380.46674581,0.0001726,2]
[383944196,1757188261462,-328.27325419,0.0001726,2]
[383944197,1757188261472,-601.39018388,0.000175,2]
[383944265,1757189183723,245.11,0.00012329,2]
[383944266,1757189244718,1150.0,0.00025,30]
[383944312,1757189438313,-461.138352,0.00013327,2]
[383944314,1757189438327,-604.87514122,0.00013462,2]
[383944316,1757189438336,-429.40926512,0.00013697,2]
[383944318,1757189438346,-300.0,0.00013697,2]
[383944320,1757189438356,-480.0,0.00013698,2]
[383944322,1757189438365,-480.0,0.00013698,2]
[383944324,1757189438375,-480.0,0.00013698,2]
[383944326,1757189438385,-480.0,0.00013698,2]
[383944328,1757189438395,-480.0,0.00013698,2]
[383944330,1757189438404,-480.0,0.00013698,2]
[383944332,1757189438414,-480.0,0.00013698,2]
[383944334,1757189438423,-480.0,0.00013698,2]
[383944336,1757189438433,-480.0,0.00013698,2]
[383944338,1757189438442,-480.0,0.00013698,2]
[383944340,1757189438452,-480.0,0.00013698,2]
[383944342,1757189438461,-480.0,0.00013698,2]
[383944344,1757189438471,-480.0,0.00013698,2]
[383944346,1757189438480,-480.0,0.00013698,2]
[383944348,1757189438489,-480.0,0.00013698,2]
[383944350,1757189438499,-480.0,0.00013698,2]
[383944352,1757189438508,-480.0,0.00013698,2]
[383944354,1757189438517,-480.0,0.00013698,2]
[383944356,1757189438527,-480.0,0.00013698,2]
[383944359,1757189438537,-480.0,0.00013698,2]
[383944361,1757189438546,-480.0,0.00013698,2]
[383944362,1757189438555,-480.0,0.00013698,2]
[383944365,1757189438565,-480.0,0.00013698,2]
[383944367,1757189438575,-480.0,0.00013698,2]
[383944369,1757189438584,-480.0,0.00013698,2]
[383944371,1757189438594,-480.0,0.00013698,2]
[383944373,1757189438603,-480.0,0.00013698,2]
[383944375,1757189438612,-480.0,0.00013698,2]
[383944377,1757189438622,-480.0,0.00013698,2]
[383944379,1757189438631,-480.0,0.00013698,2]
[383944381,1757189438640,-480.0,0.00013698,2]
[383944383,1757189438650,-480.0,0.00013698,2]
[383944385,1757189438659,-480.0,0.00013698,2]
[383944387,1757189438669,-480.0,0.00013698,2]
[383944389,1757189438679,-615.29918982,0.00013698,2]
[383944391,1757189438688,-480.0,0.00013698,2]
[383944393,1757189438698,-480.0,0.00013698,2]
[383944395,1757189438707,-480.0,0.00013698,2]
[383944397,1757189438717,-480.0,0.00013698,2]
[383944399,1757189438726,-480.0,0.00013698,2]
[383944401,1757189438736,-506.9,0.00013698,2]
[383944403,1757189438746,-480.0,0.00013698,2]
[383944405,1757189438755,-480.0,0.00013698,2]
[383944407,1757189438764,-480.0,0.00013698,2]
[383944409,1757189438774,-512.97430716,0.00013698,2]
[383944411,1757189438783,-480.0,0.00013698,2]
[383944413,1757189438793,-480.0,0.00013698,2]
[383944415,1757189438802,-719.99,0.00013698,2]
[383944417,1757189438811,-480.0,0.00013698,2]
[383944419,1757189438820,-480.0,0.00013698,2]
[383944421,1757189438830,-480.0,0.00013698,2]
[383944423,1757189438840,-326.47130793,0.00013698,2]
[383944425,1757189438849,-480.0,0.00013698,2]
[383944427,1757189438858,-480.0,0.00013698,2]
[383944429,1757189438869,-480.0,0.00013698,2]
[383944431,1757189438878,-480.0,0.00013698,2]
[383944433,1757189438887,-271.25022647,0.00013698,2]
[383944435,1757189438896,-473.40499541,0.00013698,2]
[383944437,1757189438906,-480.0,0.00013698,2]
[383944439,1757189438915,-480.0,0.00013698,2]
[383944441,1757189438924,-480.0,0.00013698,2]
[383944443,1757189438933,-480.0,0.00013698,2]
[383944445,1757189438942,-480.0,0.00013698,2]
[383944446,1757189438952,-480.0,0.00013698,2]
[383944449,1757189438961,-480.0,0.00013698,2]
[383944450,1757189438971,-480.0,0.00013698,2]
[383944452,1757189438981,-480.0,0.00013698,2]
[383944454,1757189438991,-480.0,0.00013698,2]
[383944455,1757189439000,-480.0,0.00013698,2]
[383944456,1757189439010,-480.0,0.00013698,2]
[383944457,1757189439020,-480.0,0.00013698,2]
[383944458,1757189439029,-480.0,0.00013698,2]
[383944459,1757189439038,-480.0,0.00013698,2]
[383944460,1757189439048,-480.0,0.00013698,2]
[383944461,1757189439058,-480.0,0.00013698,2]
[383944462,1757189439067,-480.0,0.00013698,2]
[383944463,1757189439077,-480.0,0.00013698,2]
[383944464,1757189439087,-178.83363521,0.00013698,2]
[383944465,1757189439096,-480.0,0.00013698,2]
[383944466,1757189439107,-480.0,0.00013698,2]
[383944467,1757189439116,-480.0,0.00013698,2]
[383944468,1757189439126,-480.0,0.00013698,2]
[383944469,1757189439135,-1204.48,0.00013698,2]
[383944470,1757189439146,-132.52210102,0.00013698,2]
[383944744,1757189441864,-347.47789898,0.00013698,2]
[383944746,1757189441874,-480.0,0.00013698,2]
[383944748,1757189441884,-195.7631112,0.00013699,2]
[383944750,1757189441894,-814.913543,0.00013699,2]
[383944752,1757189441904,-2324.8440741,0.00013872,2]
[383944879,1757189443364,-480.0,0.00013698,2]
[383944881,1757189443374,-1163.59453793,0.00013872,2]
[383944883,1757189443384,-300.0,0.00013971,2]
[383944885,1757189443394,-300.0,0.00013971,2]
[383944887,1757189443403,-300.0,0.00013971,2]
[383944889,1757189443413,-300.0,0.00013971,2]
[383944891,1757189443422,-300.0,0.00013971,2]
[383944893,1757189443433,-300.0,0.00013971,2]
[383944895,1757189443443,-300.0,0.00013971,2]
[383944897,1757189443453,-300.0,0.00013971,2]
[383944899,1757189443462,-300.0,0.00013971,2]
[383944901,1757189443471,-300.0,0.00013971,2]
[383944903,1757189443481,-300.0,0.00013971,2]
[383944905,1757189443490,-300.0,0.00013971,2]
[383944907,1757189443499,-300.0,0.00013971,2]
[383944909,1757189443509,-300.0,0.00013971,2]
[383944911,1757189443519,-300.0,0.00013971,2]
[383944913,1757189443528,-600.0,0.00013971,2]
[383944915,1757189443538,-480.0,0.00013971,2]
[383944917,1757189443547,-480.0,0.00013971,2]
[383944919,1757189443557,-480.0,0.00013971,2]
[383944921,1757189443567,-480.0,0.00013972,2]
[383944923,1757189443576,-480.0,0.00013972,2]
[383944925,1757189443587,-480.0,0.00013972,2]
[383944927,1757189443596,-480.0,0.00013972,2]
[383944929,1757189443606,-480.0,0.00013972,2]
[383944931,1757189443617,-480.0,0.00013972,2]
[383944933,1757189443627,-480.0,0.00013972,2]
[383944935,1757189443637,-480.0,0.00013972,2]
[383944937,1757189443646,-480.0,0.00013972,2]
[383944939,1757189443655,-480.0,0.00013972,2]
[383944941,1757189443665,-480.0,0.00013972,2]
[383944943,1757189443674,-480.0,0.00013972,2]
[383944945,1757189443683,-480.0,0.00013972,2]
[383944947,1757189443692,-480.0,0.00013972,2]
[383944949,1757189443705,-480.0,0.00013972,2]
[383944951,1757189443714,-480.0,0.00013972,2]
[383944952,1757189443724,-480.0,0.00013972,2]
[383944954,1757189443734,-371.75874229,0.00013972,2]
[383944956,1757189443745,-719.99,0.00013972,2]
[383944958,1757189443754,-480.0,0.00013972,2]
[383944960,1757189443764,-480.0,0.00013972,2]
[383944962,1757189443775,-480.0,0.00013972,2]
[383944964,1757189443785,-480.0,0.00013972,2]
[383944966,1757189443795,-480.0,0.00013972,2]
[383944968,1757189443805,-480.0,0.00013972,2]
[383944970,1757189443814,-480.0,0.00013972,2]
[383944972,1757189443825,-480.0,0.00013972,2]
[383944974,1757189443835,-480.0,0.00013972,2]
[383944976,1757189443846,-480.0,0.00013972,2]